lending/lending_fUSD_20250131
["ID","MTS","AMOUNT","RATE_DAILY","PERIOD"]
[351065002,1738323048570,-3531.48,0.00016438,2]
[351065003,1738323048579,-500.86,0.00016438,2]
[351065004,1738323048588,-151.0,0.00016438,2]
[351065005,1738323048598,-151.0,0.00016438,2]
[351065006,1738323048608,-256.258646,0.00016438,2]
[351065007,1738323048617,-500.0,0.00016438,2]
[351065008,1738323048628,-509.93,0.00016438,2]
[351065009,1738323048638,-1186.73,0.00016438,2]
[351065010,1738323048647,-503.04998582,0.00016438,2]
[351065011,1738323048657,-500.0,0.00016438,2]
[351065012,1738323048666,-500.0,0.00016438,2]
[351065013,1738323048676,-1411.37,0.00016438,2]
[351065014,1738323048686,-500.0,0.00016438,2]
[351065015,1738323048697,-500.0,0.00016438,2]
[351065016,1738323048709,-500.0,0.00016438,2]
[351065017,1738323048721,-2122.9,0.00016438,2]
[351065018,1738323048732,-902.27,0.00016438,2]
[351065019,1738323048742,-500.0,0.00016438,2]
[351065020,1738323048751,-500.0,0.00016438,2]
[351065021,1738323048761,-2839.89,0.00016438,2]
[351065022,1738323048770,-1169.81,0.00016438,2]
[351065023,1738323048780,-151.0,0.00016438,2]
[351065024,1738323048789,-500.0,0.00016438,2]
[351065025,1738323048798,-2045.77,0.00016438,2]
[351065026,1738323048807,-151.0,0.00016438,2]
[351065027,1738323048817,-151.0,0.00016438,2]
[351065028,1738323048826,-151.0,0.00016438,2]
[351065029,1738323048835,-151.0,0.00016438,2]
[351065030,1738323048846,-622.69543081,0.00016438,2]
[351065031,1738323048856,-845.02,0.00016438,2]
[351065032,1738323048866,-151.0,0.00016438,2]
[351065033,1738323048875,-177.924244,0.00016438,2]
[351065034,1738323048886,-2892.95,0.00016438,2]
[351065035,1738323048896,-500.0,0.00016438,2]
[351065036,1738323048906,-500.0,0.00016438,2]
[351065037,1738323048915,-500.0,0.00016438,2]
[351065038,1738323048926,-151.0,0.00016438,2]
[351065039,1738323048936,-151.0,0.00016438,2]
[351065040,1738323048946,-1131.85,0.00016438,2]
[351065041,1738323048956,-151.0,0.00016438,2]
[351065042,1738323048966,-151.0,0.00016438,2]
[351065043,1738323048978,-500.0,0.00016438,2]
[351065044,1738323048988,-268.789741,0.00016438,2]
[351065045,1738323048998,-3027.76,0.00016438,2]
[351065046,1738323049007,-4851.36,0.00016438,2]
[351065047,1738323049018,-500.0,0.00016438,2]
[351065048,1738323049028,-1718.8,0.00016438,2]
[351065049,1738323049038,-2594.05,0.00016438,2]
[351065050,1738323049048,-1324.51,0.00016438,2]
[351065051,1738323049059,-500.0,0.00016438,2]
[351065052,1738323049069,-1337.35,0.00016438,2]
[351065053,1738323049078,-1106.09,0.00016438,2]
[351065054,1738323049088,-500.0,0.00016438,2]
[351065055,1738323049097,-500.0,0.00016438,2]
[351065056,1738323049106,-500.0,0.00016438,2]
[351065057,1738323049116,-949.11,0.00016438,2]
[351065058,1738323049126,-500.0,0.00016438,2]
[351065059,1738323049136,-1261.33,0.00016438,2]
[351065060,1738323049146,-431.93715645,0.00016438,2]
[351065061,1738323049155,-500.0,0.00016438,2]
[351065062,1738323049165,-710.62,0.00016438,2]
[351065063,1738323049174,-650.7,0.00016438,2]
[351065064,1738323049184,-705.09,0.00016438,2]
[351065065,1738323049194,-500.0,0.00016438,2]
[351065066,1738323049203,-500.0,0.00016438,2]
[351065067,1738323049212,-500.0,0.00016438,2]
[351065068,1738323049222,-500.0,0.00016438,2]
[351065069,1738323049231,-742.48,0.00016438,2]
[351065070,1738323049240,-509.19079032,0.00016438,2]
[351065071,1738323049250,-9206.65,0.00016438,2]
[351065072,1738323049261,-2364.34,0.00016438,2]
[351065073,1738323049270,-500.0,0.00016438,2]
[351065074,1738323049280,-500.0,0.00016438,2]
[351065075,1738323049289,-1730.79,0.00016438,2]
[351065076,1738323049299,-500.0,0.00016438,2]
[351065077,1738323049310,-500.0,0.00016438,2]
[351065078,1738323049320,-500.0,0.00016438,2]
[351065079,1738323049330,-2632.89,0.00016438,2]
[351065080,1738323049339,-500.0,0.00016438,2]
[351065081,1738323049349,-500.0,0.00016438,2]
[351065082,1738323049358,-994.44,0.00016438,2]
[351065083,1738323049367,-500.0,0.00016438,2]
[351065084,1738323049378,-2217.98,0.00016438,2]
[351065085,1738323049387,-1185.07,0.00016438,2]
[351065086,1738323049397,-2299.57,0.00016438,2]
[351065087,1738323049406,-151.0,0.00016438,2]
[351065088,1738323049416,-754.96,0.00016438,2]
[351065089,1738323049425,-151.0,0.00016438,2]
[351065090,1738323049435,-500.0,0.00016438,2]
[351065091,1738323049445,-151.0,0.00016438,2]
[351065092,1738323049455,-637.68,0.00016438,2]
[351065093,1738323049465,-151.0,0.00016438,2]
[351065094,1738323049476,-151.0,0.00016438,2]
[351065095,1738323049486,-151.0,0.00016438,2]
[351065096,1738323049496,-1695.38,0.00016438,2]
[351065097,1738323049507,-282.490931,0.00016438,2]
[351065098,1738323049516,-959.09,0.00016438,2]
[351065099,1738323049526,-1576.65,0.00016438,2]
[351065100,1738323049536,-1408.79,0.00016438,2]
[351065101,1738323049545,-3752.37,0.00016438,2]
[351065102,1738323049555,-500.0,0.00016438,2]
[351065103,1738323049564,-1401.32,0.00016438,2]
[351065104,1738323049574,-1087.69,0.00016438,2]
[351065105,1738323049722,-989.74,0.00016438,2]
[351065106,1738323049744,-500.0,0.00016438,2]
[351065107,1738323049753,-500.0,0.00016438,2]
[351065108,1738323049762,-500.0,0.00016438,2]
[351065109,1738323049771,-500.0,0.00016438,2]
[351065110,1738323049780,-503.7352208,0.00016438,2]
[351065111,1738323049789,-500.0,0.00016438,2]
[351065112,1738323049799,-500.0,0.00016438,2]
[351065113,1738323049810,-500.0,0.00016438,2]
[351065114,1738323049819,-500.0,0.00016438,2]
[351065115,1738323049828,-500.0,0.00016438,2]
[351065116,1738323049837,-500.0,0.00016438,2]
[351065117,1738323049847,-500.0,0.00016438,2]
[351065118,1738323049856,-500.0,0.00016438,2]
[351065119,1738323049865,-8215.37,0.00016438,2]
[351065120,1738323049875,-2515.21,0.00016438,2]
[351065121,1738323049887,-2597.85,0.00016438,2]
[351065122,1738323049896,-647.13,0.00016438,2]
[351065123,1738323049905,-500.0,0.00016438,2]
[351065124,1738323049914,-500.0,0.00016438,2]
[351065125,1738323049924,-185.32804393,0.00016438,2]
[351065126,1738323049933,-2757.06,0.00016438,2]
[351065127,1738323049942,-909.1,0.00016438,2]
[351065128,1738323049952,-500.0,0.00016438,2]
[351065129,1738323049961,-2894.94,0.00016438,2]
[351065130,1738323049971,-1622.36,0.00016438,2]
[351065131,1738323049980,-2103.99,0.00016438,2]
[351065132,1738323049992,-1810.3,0.00016438,2]
[351065133,1738323050002,-529.49635176,0.00016438,2]
[351065134,1738323050011,-500.0,0.00016438,2]
[351065135,1738323050020,-500.0,0.00016438,2]
[351065136,1738323050030,-757.69,0.00016438,2]
[351065137,1738323050040,-688.07,0.00016438,2]
[351065138,1738323050048,-4454.49,0.00016438,2]
[351065139,1738323050058,-3861.01,0.00016438,2]
[351065140,1738323050069,-500.0,0.00016438,2]
[351065141,1738323050079,-500.0,0.00016438,2]
[351065142,1738323050089,-2025.17,0.00016438,2]
[351065143,1738323050099,-515.11203845,0.00016438,2]
[351065144,1738323050109,-500.0,0.00016438,2]
[351065145,1738323050119,-500.0,0.00016438,2]
[351065146,1738323050130,-3606.29,0.00016438,2]
[351065147,1738323050140,-500.0,0.00016438,2]
[351065148,1738323050149,-502.71539319,0.00016438,2]
[351065149,1738323050159,-3907.41,0.00016438,2]
[351065150,1738323050169,-500.0,0.00016438,2]
[351065151,1738323050179,-500.0,0.00016438,2]
[351065152,1738323050188,-500.0,0.00016438,2]
[351065153,1738323050198,-500.0,0.00016438,2]
[351065154,1738323050208,-2440.37,0.00016438,2]
[351065155,1738323050217,-1745.49,0.00016438,2]
[351065156,1738323050227,-500.0,0.00016438,2]
[351065157,1738323050236,-818.62,0.00016438,2]
[351065158,1738323050245,-818.62,0.00016438,2]
[351065159,1738323050255,-818.62,0.00016438,2]
[351065160,1738323050264,-818.62,0.00016438,2]
[351065161,1738323050273,-818.62,0.00016438,2]
[351065162,1738323050282,-5548.15,0.00016438,2]
[351065163,1738323050291,-818.62,0.00016438,2]
[351065164,1738323050300,-818.62,0.00016438,2]
[351065165,1738323050310,-818.62,0.00016438,2]
[351065166,1738323050319,-500.0,0.00016438,2]
[351065167,1738323050328,-818.62,0.00016438,2]
[351065168,1738323050337,-3168.71,0.00016438,2]
[351065169,1738323050346,-3752.67,0.00016438,2]
[351065170,1738323050355,-1435.49,0.00016438,2]
[351065171,1738323050365,-1082.67,0.00016438,2]
[351065172,1738323050374,-500.0,0.00016438,2]
[351065173,1738323050386,-2282.44,0.00016438,2]
[351065174,1738323050395,-760.62,0.00016438,2]
[351065175,1738323050405,-1080.31,0.00016438,2]
[351065176,1738323050415,-941.91,0.00016438,2]
[351065177,1738323050424,-500.0,0.00016438,2]
[351065178,1738323050433,-500.0,0.00016438,2]
[351065179,1738323050442,-2947.86,0.00016438,2]
[351065180,1738323050451,-1273.21,0.00016438,2]
[351065181,1738323050460,-5608.95,0.00016438,2]
[351065182,1738323050469,-500.0,0.00016438,2]
[351065183,1738323050478,-506.91,0.00016438,2]
[351065184,1738323050488,-3988.77,0.00016438,2]
[351065185,1738323050497,-4353.52,0.00016438,2]
[351065186,1738323050506,-151.0,0.00016438,2]
[351065187,1738323050515,-943.25,0.00016438,2]
[351065188,1738323050524,-1595.96,0.00016438,2]
[351065189,1738323050533,-500.0,0.00016438,2]
[351065190,1738323050542,-500.0,0.00016438,2]
[351065191,1738323050551,-500.0,0.00016438,2]
[351065192,1738323050560,-500.0,0.00016438,2]
[351065193,1738323050569,-3722.14,0.00016438,2]
[351065194,1738323050578,-500.0,0.00016438,2]
[351065195,1738323050587,-500.0,0.00016438,2]
[351065196,1738323050595,-505.47479646,0.00016438,2]
[351065197,1738323050604,-500.0,0.00016438,2]
[351065198,1738323050614,-500.0,0.00016438,2]
[351065199,1738323050624,-1683.72,0.00016438,2]
[351065200,1738323050635,-500.0,0.00016438,2]
[351065201,1738323050644,-500.0,0.00016438,2]
[351065202,1738323050653,-3515.95,0.00016438,2]
[351065203,1738323050662,-500.0,0.00016438,2]
[351065204,1738323050672,-500.0,0.00016438,2]
[351065205,1738323050681,-500.0,0.00016438,2]
[351065206,1738323050691,-500.0,0.00016438,2]
[351065207,1738323050700,-2978.69,0.00016438,2]
[351065208,1738323050709,-667.8,0.00016438,2]
[351065209,1738323050719,-5511.82,0.00016438,2]
[351065210,1738323050729,-500.0,0.00016438,2]
[351065211,1738323050738,-500.0,0.00016438,2]
[351065212,1738323050747,-500.0,0.00016438,2]
[351065213,1738323050764,-500.0,0.00016438,2]
[351065214,1738323050782,-1007.69,0.00016438,2]
[351065215,1738323050798,-500.0,0.00016438,2]
[351065216,1738323050816,-500.0,0.00016438,2]
[351065217,1738323050834,-749.94,0.00016438,2]
[351065218,1738323050848,-2950.32,0.00016438,2]
[351065219,1738323050865,-3729.85,0.00016438,2]
[351065220,1738323050882,-6719.09,0.00016438,2]
[351065221,1738323050901,-832.98,0.00016438,2]
[351065222,1738323050918,-5011.36,0.00016438,2]
[351065223,1738323050935,-786.72,0.00016438,2]
[351065224,1738323050952,-9659.28,0.00016438,2]
[351065225,1738323050969,-505.17142275,0.00016438,2]
[351065226,1738323050984,-500.0,0.00016438,2]
[351065227,1738323051003,-609.81,0.00016438,2]
[351065228,1738323051016,-2692.52,0.00016438,2]
[351065229,1738323051031,-16283.95,0.00016438,2]
[351065230,1738323051047,-500.0,0.00016438,2]
[351065231,1738323051058,-500.0,0.00016438,2]
[351065232,1738323051072,-500.0,0.00016438,2]
[351065233,1738323051086,-1717.37,0.00016438,2]
[351065234,1738323051100,-8168.26,0.00016438,2]
[351065235,1738323051114,-501.14987487,0.00016438,2]
[351065236,1738323051130,-3203.56,0.00016438,2]
[351065237,1738323051144,-1518.78,0.00016438,2]
[351065238,1738323051158,-500.0,0.00016438,2]
[351065239,1738323051172,-1472.93,0.00016438,2]
[351065240,1738323051188,-511.42045189,0.00016438,2]
[351065241,1738323051202,-500.0,0.00016438,2]
[351065242,1738323051215,-506.19844928,0.00016438,2]
[351065243,1738323051229,-3231.63,0.00016438,2]
[351065244,1738323051243,-9057.52,0.00016438,2]
[351065245,1738323051257,-500.0,0.00016438,2]
[351065246,1738323051271,-5646.18,0.00016438,2]
[351065247,1738323051285,-11928.59,0.00016438,2]
[351065248,1738323051301,-509.69993749,0.00016438,2]
[351065249,1738323051315,-500.0,0.00016438,2]
[351065250,1738323051328,-500.0,0.00016438,2]
[351065251,1738323051342,-500.0,0.00016438,2]
[351065252,1738323051358,-9120.6,0.00016438,2]
[351065253,1738323051372,-1300.92,0.00016438,2]
[351065254,1738323051386,-500.0,0.00016438,2]
[351065255,1738323051400,-1301.1,0.00016438,2]
[351065256,1738323051414,-151.0,0.00016438,2]
[351065257,1738323051428,-151.0,0.00016438,2]
[351065258,1738323051442,-151.0,0.00016438,2]
[351065259,1738323051456,-500.0,0.00016438,2]
[351065260,1738323051470,-189.595804,0.00016438,2]
[351065261,1738323051484,-151.0,0.00016438,2]
[351065262,1738323051498,-2474.05,0.00016438,2]
[351065263,1738323051512,-1354.07,0.00016438,2]
[351065264,1738323051527,-207.922021,0.00016438,2]
[351065265,1738323051541,-1928.27,0.00016438,2]
[351065266,1738323051554,-576.67,0.00016438,2]
[351065267,1738323051570,-500.0,0.00016438,2]
[351065268,1738323051583,-584.22,0.00016438,2]
[351065269,1738323051599,-697.27,0.00016438,2]
[351065270,1738323051614,-881.35,0.00016438,2]
[351065271,1738323051627,-1975.43,0.00016438,2]
[351065272,1738323051641,-1585.85,0.00016438,2]
[351065273,1738323051654,-2502.21,0.00016438,2]
[351065274,1738323051668,-500.0,0.00016438,2]
[351065275,1738323051682,-500.0,0.00016438,2]
[351065276,1738323051696,-637.65,0.00016438,2]
[351065277,1738323051710,-151.0,0.00016438,2]
[351065278,1738323051724,-151.0,0.00016438,2]
[351065279,1738323051738,-151.0,0.00016438,2]
[351065280,1738323051751,-151.0,0.00016438,2]
[351065281,1738323051765,-151.0,0.00016438,2]
[351065282,1738323051779,-151.0,0.00016438,2]
[351065283,1738323051793,-151.0,0.00016438,2]
[351065284,1738323051806,-500.0,0.00016438,2]
[351065285,1738323051820,-151.0,0.00016438,2]
[351065286,1738323051835,-492.70004465,0.00016438,2]
[351065287,1738323051849,-6551.41,0.00016438,2]
[351065288,1738323051864,-2979.91,0.00016438,2]
[351065289,1738323051879,-500.0,0.00016438,2]
[351065290,1738323051893,-500.0,0.00016438,2]
[351065291,1738323051908,-909.21,0.00016438,2]
[351065292,1738323051922,-1586.17,0.00016438,2]
[351065293,1738323051936,-500.0,0.00016438,2]
[351065294,1738323051951,-500.0,0.00016438,2]
[351065295,1738323051964,-356.09135127,0.00016438,2]
[351065296,1738323051979,-563.64,0.00016438,2]
[351065297,1738323051995,-500.0,0.00016438,2]
[351065298,1738323052009,-568.40341007,0.00016438,2]
[351065299,1738323052023,-2895.59,0.00016438,2]
[351065300,1738323052036,-151.0,0.00016438,2]
[351065301,1738323052050,-151.0,0.00016438,2]
[351065302,1738323052065,-500.0,0.00016438,2]
[351065303,1738323052080,-277.251744,0.00016438,2]
[351065304,1738323052094,-277.251744,0.00016438,2]
[351065305,1738323052107,-277.251744,0.00016438,2]
[351065306,1738323052121,-277.251744,0.00016438,2]
[351065307,1738323052135,-500.0,0.00016438,2]
[351065308,1738323052149,-645.36,0.00016438,2]
[351065309,1738323052162,-277.251744,0.00016438,2]
[351065310,1738323052176,-277.251744,0.00016438,2]
[351065311,1738323052190,-277.251744,0.00016438,2]
[351065312,1738323052206,-277.251744,0.00016438,2]
[351065313,1738323052220,-1332.96,0.00016438,2]
[351065314,1738323052230,-277.251744,0.00016438,2]
[351065315,1738323052239,-500.0,0.00016438,2]
[351065316,1738323052250,-277.251744,0.00016438,2]
[351065317,1738323052259,-2149.94,0.00016438,2]
[351065318,1738323052268,-277.251744,0.00016438,2]
[351065319,1738323052277,-697.01,0.00016438,2]
[351065320,1738323052287,-1981.95,0.00016438,2]
[351065321,1738323052297,-277.251744,0.00016438,2]
[351065322,1738323052306,-4891.31,0.00016438,2]
[351065323,1738323052591,-277.251744,0.00016438,2]
[351065324,1738323052628,-277.251744,0.00016438,2]
[351065325,1738323052645,-500.0,0.00016438,2]
[351065326,1738323052655,-277.251744,0.00016438,2]
[351065327,1738323052664,-277.251744,0.00016438,2]
[351065328,1738323052674,-776.53,0.00016438,2]
[351065329,1738323052683,-277.251744,0.00016438,2]
[351065330,1738323052694,-277.251749,0.00016438,2]
[351065331,1738323052704,-1314.59,0.00016438,2]
[351065332,1738323052714,-500.0,0.00016438,2]
[351065333,1738323052724,-355.31179836,0.00016438,2]
[351065334,1738323052733,-500.0,0.00016473,2]
[351065335,1738323052742,-7784.85867539,0.00016475,2]
[351065336,1738323052751,-207.88019604,0.00016475,2]
[351065337,1738323052760,-590.91480945,0.00016475,2]
[351065338,1738323052769,-1015.30947576,0.00016475,2]
[351065339,1738323052780,-5150.6905151,0.00016495,2]
[351065340,1738323052791,-3076.5,0.000165,2]
[351065341,1738323052800,-5150.6905151,0.0001656,2]
[351065342,1738323052810,-2000.0,0.00016564,2]
[351065343,1738323052821,-200.0,0.00016564,2]
[351065344,1738323052831,-177.27,0.00016565,2]
[351065345,1738323052840,-519.30652083,0.00016573,2]
[351065346,1738323052850,-190.74008483,0.00016573,2]
[351065347,1738323052859,-500.08731339,0.00016573,2]
[351065348,1738323052869,-1460.96,0.00016574,2]
[351065349,1738323052878,-1460.96,0.00016574,2]
[351065350,1738323052888,-1460.96,0.00016574,2]
[351065351,1738323052897,-1460.96,0.00016574,2]
[351065352,1738323052906,-745.56,0.00016574,2]
[351065353,1738323052915,-500.0,0.00016574,2]
[351065354,1738323052924,-500.0,0.00016574,2]
[351065355,1738323052932,-500.0,0.00016574,2]
[351065356,1738323052942,-500.0,0.00016574,2]
[351065357,1738323052951,-818.62,0.00016574,2]
[351065358,1738323052959,-818.62,0.00016574,2]
[351065359,1738323052968,-818.62,0.00016574,2]
[351065360,1738323052978,-818.62,0.00016574,2]
[351065361,1738323052990,-1814.637341,0.00016575,2]
[351065362,1738323053000,-2620.30647,0.00016575,2]
[351065363,1738323053010,-514.37324326,0.00016575,2]
[351065364,1738323053019,-505.62233868,0.00016575,2]
[351065365,1738323053029,-500.0,0.00016575,2]
[351065366,1738323053038,-158.63320692,0.00016575,2]
[351065367,1738323053047,-340.94748584,0.00016575,2]
[351065368,1738323053057,-500.0,0.00016575,2]
[351065369,1738323053068,-500.0,0.00016575,2]
[351065370,1738323053077,-526.65576921,0.00016575,2]
[351065371,1738323053086,-500.0,0.00016575,2]
[351065372,1738323053095,-500.0,0.00016575,2]
[351065373,1738323053105,-500.0,0.00016575,2]
[351065374,1738323053114,-500.0,0.00016575,2]
[351065375,1738323053123,-500.0,0.00016575,2]
[351065376,1738323053133,-500.0,0.00016575,2]
[351065377,1738323053143,-500.0,0.00016575,2]
[351065378,1738323053153,-500.0,0.00016575,2]
[351065379,1738323053162,-500.0,0.00016575,2]
[351065380,1738323053171,-500.0,0.00016575,2]
[351065381,1738323053180,-521.83404512,0.00016575,2]
[351065382,1738323053190,-500.0,0.00016575,2]
[351065383,1738323053200,-506.77128415,0.00016575,2]
[351065384,1738323053209,-317.39001056,0.00016575,2]
[351065385,1738323053219,-500.0,0.00016575,2]
[351065386,1738323053228,-500.0,0.00016575,2]
[351065387,1738323053237,-500.0,0.00016575,2]
[351065388,1738323053246,-514.7267665,0.00016575,2]
[351065389,1738323053255,-500.0,0.00016575,2]
[351065390,1738323053264,-500.0,0.00016575,2]
[351065391,1738323053273,-498.01170282,0.00016575,2]
[351065392,1738323053281,-500.0,0.00016575,2]
[351065393,1738323053290,-619.06442287,0.00016575,2]
[351065394,1738323053299,-500.0,0.00016575,2]
[351065395,1738323053308,-352.92647259,0.00016575,2]
[351065396,1738323053316,-500.0,0.00016575,2]
[351065397,1738323053325,-631.53091301,0.00016575,2]
[351065398,1738323053333,-500.0,0.00016575,2]
[351065399,1738323053342,-500.0,0.00016575,2]
[351065400,1738323053352,-500.0,0.00016575,2]
[351065401,1738323053361,-500.0,0.00016575,2]
[351065402,1738323053370,-500.0,0.00016575,2]
[351065403,1738323053379,-500.0,0.00016575,2]
[351065404,1738323053388,-646.62,0.00016575,2]
[351065405,1738323053397,-503.27647344,0.00016575,2]
[351065406,1738323053406,-500.0,0.00016575,2]
[351065407,1738323053415,-500.0,0.00016575,2]
[351065408,1738323053424,-1021.11,0.00016575,2]
[351065409,1738323053433,-500.0,0.00016575,2]
[351065410,1738323053442,-500.0,0.00016575,2]
[351065411,1738323053452,-500.0,0.00016575,2]
[351065412,1738323053461,-500.0,0.00016575,2]
[351065413,1738323053471,-500.0,0.00016575,2]
[351065414,1738323053480,-500.0,0.00016575,2]
[351065415,1738323053490,-500.0,0.00016575,2]
[351065416,1738323053499,-297.47085954,0.00016575,2]
[351065417,1738323053508,-500.0,0.00016575,2]
[351065418,1738323053517,-613.11941244,0.00016575,2]
[351065419,1738323053525,-864.03,0.00016575,2]
[351065420,1738323053534,-500.0,0.00016575,2]
[351065421,1738323053543,-500.0,0.00016575,2]
[351065422,1738323053552,-500.0,0.00016575,2]
[351065423,1738323053561,-514.2,0.00016575,2]
[351065424,1738323053570,-500.0,0.00016575,2]
[351065425,1738323053579,-500.0,0.00016575,2]
[351065426,1738323053588,-625.68,0.00016575,2]
[351065427,1738323053598,-500.0,0.00016575,2]
[351065428,1738323053607,-500.0,0.00016575,2]
[351065429,1738323053616,-307.7662771,0.00016575,2]
[351065430,1738323053625,-500.0,0.00016575,2]
[351065431,1738323053635,-500.0,0.00016575,2]
[351065432,1738323053644,-500.0,0.00016575,2]
[351065433,1738323053653,-627.41,0.00016575,2]
[351065434,1738323053663,-501.72333911,0.00016575,2]
[351065435,1738323053673,-500.0,0.00016575,2]
[351065436,1738323053683,-500.0,0.00016575,2]
[351065437,1738323053693,-720.29,0.00016575,2]
[351065438,1738323053702,-500.0,0.00016575,2]
[351065439,1738323053711,-500.0,0.00016575,2]
[351065440,1738323053720,-500.0,0.00016575,2]
[351065441,1738323053730,-492.5310835,0.00016575,2]
[351065442,1738323053739,-500.0,0.00016575,2]
[351065443,1738323053748,-548.98031964,0.00016575,2]
[351065444,1738323053758,-500.0,0.00016575,2]
[351065445,1738323053767,-500.0,0.00016575,2]
[351065446,1738323053776,-500.0,0.00016575,2]
[351065447,1738323053785,-500.0,0.00016575,2]
[351065448,1738323053795,-594.96,0.00016575,2]
[351065449,1738323053805,-500.54524077,0.00016575,2]
[351065450,1738323053815,-500.0,0.00016575,2]
[351065451,1738323053824,-500.0,0.00016575,2]
[351065452,1738323053834,-505.11423404,0.00016575,2]
[351065453,1738323053843,-500.0,0.00016575,2]
[351065454,1738323053852,-503.33966803,0.00016575,2]
[351065455,1738323053862,-446.02238197,0.00016575,2]
[351065456,1738323053871,-500.0,0.00016575,2]
[351065457,1738323053881,-500.0,0.00016575,2]
[351065458,1738323053890,-500.0,0.00016575,2]
[351065459,1738323053899,-508.20583205,0.00016575,2]
[351065460,1738323053908,-500.0,0.00016575,2]
[351065461,1738323053917,-537.12973603,0.00016575,2]
[351065462,1738323053926,-500.0,0.00016575,2]
[351065463,1738323053935,-500.0,0.00016575,2]
[351065464,1738323053944,-522.49950938,0.00016575,2]
[351065465,1738323053953,-500.0,0.00016575,2]
[351065466,1738323053963,-583.47,0.00016575,2]
[351065467,1738323053972,-500.0,0.00016575,2]
[351065468,1738323053983,-500.0,0.00016575,2]
[351065469,1738323053994,-500.0,0.00016575,2]
[351065470,1738323054003,-500.0,0.00016575,2]
[351065471,1738323054012,-500.0,0.00016575,2]
[351065472,1738323054023,-500.0,0.00016575,2]
[351065473,1738323054032,-500.0,0.00016575,2]
[351065474,1738323054041,-500.0,0.00016575,2]
[351065475,1738323054050,-500.0,0.00016575,2]
[351065476,1738323054061,-692.31,0.00016575,2]
[351065477,1738323054070,-500.0,0.00016575,2]
[351065478,1738323054079,-500.0,0.00016575,2]
[351065479,1738323054089,-500.0,0.00016575,2]
[351065480,1738323054098,-500.0,0.00016575,2]
[351065481,1738323054108,-555.53772276,0.00016575,2]
[351065482,1738323054118,-500.0,0.00016575,2]
[351065483,1738323054127,-500.0,0.00016575,2]
[351065484,1738323054139,-642.58,0.00016575,2]
[351065485,1738323054148,-500.0,0.00016575,2]
[351065486,1738323054157,-184.97701498,0.00016575,2]
[351065487,1738323054166,-500.0,0.00016575,2]
[351065488,1738323054175,-500.0,0.00016575,2]
[351065489,1738323054186,-500.0,0.00016575,2]
[351065490,1738323054195,-500.0,0.00016575,2]
[351065491,1738323054204,-500.0,0.00016575,2]
[351065492,1738323054214,-500.0,0.00016575,2]
[351065493,1738323054223,-511.98682788,0.00016575,2]
[351065494,1738323054233,-1244.98,0.00016575,2]
[351065495,1738323054243,-500.0,0.00016575,2]
[351065496,1738323054252,-1199.61,0.00016575,2]
[351065497,1738323054262,-500.0,0.00016575,2]
[351065498,1738323054271,-506.66,0.00016575,2]
[351065499,1738323054281,-500.0,0.00016575,2]
[351065500,1738323054292,-500.0,0.00016575,2]
[351065501,1738323054301,-528.49383489,0.00016575,2]